Workbook

Sheet Ins (hidden)
D3: Recipe Costing Tool
B7: 1. When ready to use this tool, please begin by completely filling out the information requested on the "Info" tab.
B9: 2. Press "Create Template" button and the recipe templates will appear at the bottom of the screen.
B11: 3. Input your recipe data into the appropriate shaded area on the template. If you desire a printed copy press "Print"
B13: 4. Additional templates may be added, simplely go back to the "Info" tab and press "Create Templates".
B15: Terms used in this tool:
C16: AP$/Unit | D16: As purchased cost per ingredient unit listed to the right under
D17: the unit column.
C18: Unit | D18: Measurement used in recipe for production.
C19: Yield % | D19: During production certain items incur a lose (waste) this reflects
D20: the usable portion that remains. Please refer to the table of common yields.
C21: EP$/Unit | D21: Edible purchase cost per ingredient unit as reflected after calculations of yields.
A24: Contact if you have any question or comments:
G26: Regional Executive Chef Bill Williams
G27: Eurest, Pacific Northwest Region and Microsoft
G28: One Microsoft Way 112/1041 Redmond, WA 98052
G29: Tel: (425) 703-3835 Fax: (425) 936-7329

Sheet Inf (hidden)
B2: Please completely answer all questions below. Place your answers in the shaded boxes. Click on "Create" button at the bottom of page.
B4: Tax Rate | E4: 0.0977
G6: (Y or N)
B7: Do your Prices include tax? | G7: y
B10: Budgeted Product Cost | G10: 0.45
B13: # of blank forms in this file? | G13: 1

Sheet Instructions
C2: Recipe Costing Tool
C4: 1. When ready to use this tool, please begin by completely filling out the information requested on the "Info" tab.
C6: 2. Press "Create Template" button and the recipe templates will appear at the bottom of the screen.
C8: 3. Input your recipe data into the appropriate shaded area on the template. If you desire a printed copy press "Print"
C10: 4. Additional templates may be added, simplely go back to the "Info" tab and press "Create Templates".
C12: 5. Use the "Inventory" tab to link all your recipes to your inventory. Simply update pricing on the "Inventory" tab to update all recipes.
C14: Terms used in this tool:
B16: AP$/Unit | C16: As purchased cost per ingredient unit listed to the right under
C17: the unit column.
B19: Unit | C19: Measurement used in recipe for production.
B21: Yield % | C21: During production certain items incur a lose (waste) this reflects the usable portion that remains. Please refer to the table of common yields.
B23: EP$/Unit | C23: Edible purchase cost per ingredient unit as reflected after calculations of yields.
C25: Created by Chef William Williams.
C26: Chef William Williams
C27: bwilliams61@frontier.com
C29: Modified by Chefs-Resources.com
C30: Send Suggestions for improvement or bug fixes to:
C31: Chef David Buchanan at Chef's-Resources.com
C32: chefs-resources@msn.com
C34: This file cannot be used or sold as a means of generating revenue without prior permission in writing.

Sheet Inventory
A1: Restaurant Name
A2: Last Update | B2: Storage Area | C2: Item | E2: Unit | F2: Price | G2: Unit | H2: Price | I2: Unit | J2: Price | K2: Unit | L2: Price | M2: Unit | N2: Price | O2: Notes
B3: Beverages | C3: AQUAFINA WATER - 20 OZ - 24/CASE | E3: Case | F3: 9.25 | G3: Btl | H3: =F3/24 -> 0.3854166667
B4: Beverages | C4: BAG IN THE BOX COKE | E4: Gal | F4: 8.28
B5: Beverages | C5: COFFEE DECAF 36/CASE | E5: Case | F5: 39.7 | G5: Bag | H5: =F5/36 -> 1.102777778 | I5: Cup | J5: =H5/10 -> 0.1102777778
B6: Beverages | C6: COFFEE REGULAR 36/CASE | E6: Case | F6: 77.28 | G6: Bag | H6: =F6/36 -> 2.146666667 | I6: Cup | J6: =H6/10 -> 0.2146666667
B7: Beverages | C7: COKE 20 OZ - 24/CASE | E7: Case | F7: 10.8 | G7: Btl | H7: =F7/24 -> 0.45
B8: Beverages
B9: Beverages
B10: Beverages
B11: Beverages
B12: Beverages
B13: Beverages
B14: Beverages
B15: Beverages
B16: Beverages
B17: Beverages
B18: Beverages
B19: Beverages
B20: Beverages
B21: Beverages
B22: Beverages
B23: Beverages
B24: Beverages
B25: Beverages
B26: Beverages
B27: Beverages
B28: Beverages
B29: Beverages
B30: Beverages
B31: Beverages
B32: Beverages
B33: Beverages
B34: Beverages
B35: Beverages
B36: Beverages
B37: Beverages
B38: Beverages
B39: Beverages
B40: Beverages
B41: Beverages
B42: Beverages
B43: Beverages
B44: Beverages
B45: Beverages
B46: Beverages
B47: Beverages
B48: Beverages
B49: Beverages
B50: Beverages
B51: Beverages
B52: Beverages
B53: Beverages
B54: Bread | C54: 12 Grain | E54: Pkg | F54: 1.1 | G54: Each | H54: =F54/16 -> 0.06875
B55: Bread | C55: 3x5's 6 ct | E55: Pkg | F55: 1.25 | G55: Each | H55: =F55/6 -> 0.2083333333
B56: Bread | C56: Buns Onion | E56: Pkg | F56: 2 | G56: Each | H56: =F56/8 -> 0.25
B57: Bread | C57: Buns Sesame 12 ct | E57: Pkg | F57: 1.1 | G57: Each | H57: =F57/12 -> 0.09166666667
B58: Bread | C58: Ciabatta 6 ct | E58: Pkg | F58: 2.81 | G58: Each | H58: =F58/6 -> 0.4683333333
B59: Bread
B60: Bread
B61: Bread
B62: Bread
B63: Bread
B64: Bread
B65: Bread
B66: Bread
B67: Bread
B68: Bread
B69: Bread
B70: Bread
B71: Bread
B72: Bread
B73: Bread
B74: Bread
B75: Bread
B76: Bread
B77: Bread
B78: Bread
B79: Bread
B80: Bread
B81: Bread
B82: Bread
B83: Cooler | C83: BASE CHICKEN 6/CASE | E83: Case | F83: 29.94 | G83: Lb | H83: =F83/6 -> 4.99 | I83: Oz | J83: =H83/16 -> 0.311875 | K83: Tbl | L83: =J83/2 -> 0.1559375 | M83: Tsp | N83: =L83/3 -> 0.05197916667
B84: Cooler | C84: Bratwurst Pauxent 10lb/cs 4/1 | E84: Case | F84: 24.95 | G84: Lb | H84: =F84/10 -> 2.495 | I84: Each | J84: =H84/4 -> 0.62375
B85: Cooler
B86: Cooler
B87: Cooler
B88: Cooler
B89: Cooler
B90: Cooler
B91: Cooler
B92: Cooler
B93: Cooler
B94: Cooler
B95: Cooler
B96: Cooler
B97: Cooler
B98: Cooler
B99: Cooler
B100: Cooler
B101: Cooler
B102: Cooler
B103: Cooler
B104: Cooler
B105: Cooler
B106: Cooler
B107: Cooler
B108: Cooler
B109: Cooler
B110: Cooler
B111: Cooler
B112: Cooler
B113: Cooler
B114: Cooler
B115: Cooler
B116: Cooler
B117: Cooler
B118: Cooler
B119: Cooler
B120: Cooler
B121: Cooler
B122: Cooler
B123: Cooler
B124: Cooler
B125: Cooler
B126: Cooler
B127: Cooler
B128: Cooler
B129: Cooler
B130: Cooler
B131: Cooler
B132: Cooler
B133: Cooler
B134: Cooler
B135: Cooler
B136: Cooler
B137: Cooler
B138: Cooler
B139: Cooler
B140: Cooler
B141: Cooler
B142: Cooler
B143: Cooler
B144: Cooler
B145: Cooler
B146: Cooler
B147: Cooler
B148: Cooler
B149: Cooler
B150: Cooler
B151: Cooler
B152: Cooler
B153: Cooler
B154: Cooler
B155: Cooler
B156: Cooler
B157: Cooler
B158: Cooler
B159: Cooler
B160: Cooler
B161: Cooler
B162: Cooler
B163: Cooler
B164: Cooler
B165: Cooler
B166: Cooler
B167: Cooler
B168: Cooler
B169: Cooler
B170: Cooler
B171: Cooler
B172: Cooler
B173: Cooler
B174: Cooler
B175: Cooler
B176: Cooler
B177: Cooler
B178: Cooler
B179: Cooler
B180: Cooler
B181: Cooler
B182: Cooler
B183: Cooler
B184: Cooler
B185: Cooler
B186: Cooler
B187: Cooler
B188: Cooler Dairy | C188: EGGS WHOLE MEDIUM | E188: Case | F188: 11.19 | G188: Each | H188: =F188/15/12 -> 0.06216666667
B189: Cooler Dairy | C189: CHEESE SWISS 4/5 Lb 160 slice | E189: Case | F189: 39.07 | G189: Lb | H189: =F189/4/5 -> 1.9535 | I189: Slice | J189: =H189/16/0.75 -> 0.1627916667
B190: Cooler Dairy | C190: Heavy Cream 6/64z | E190: Case | F190: 36.48 | G190: Each | H190: =F190/6 -> 6.08 | I190: FlOz | J190: =H190/64 -> 0.095
B191: Cooler Dairy
B192: Cooler Dairy
B193: Cooler Dairy
B194: Cooler Dairy
B195: Cooler Dairy
B196: Cooler Dairy
B197: Cooler Dairy
B198: Cooler Dairy
B199: Cooler Dairy
B200: Cooler Dairy
... 497 more rows

Sheet Info
B2: Please completely answer all questions below. Place your answers in the shaded boxes. Click on "Create" button at the bottom of page.
B4: Tax Rate | E4: 0.088 | L4: To unprotect the sheet click on: Format (on the right side of the toolbar above) select "unprotect sheet"
G6: (Y or N)
B7: Do your Prices include tax? | G7: n
B10: Budgeted Product Cost | G10: 0.4
B13: # of blank forms in this file? | G13: 1

Sheet Recipe Template (1)
A1: Culinary Department Recipe Costing Tool
G2: Date:
A3: Recipe name:
A4: Concept: | G4: Cuisine:
A5: Submitted by: | G5: Category:
A6: Number of Portions: 1 or 24 | B6: 1 | E6: Operation:
A7: Serving Size Per Person: | E7: Region:
A8: =IF(Gross_or_Not="y","Purposed Net Selling Price","Purposed Gross Selling Price") -> Purposed Gross Selling Price | B8: 1 | D8: =IF(Gross_or_Not="y","Ideal Net Selling Price","Ideal Gross Selling Price") -> Ideal Gross Selling Price | E8: =IF(Gross_or_Not="y","Net Selling Price","Gross Selling Price") -> Gross Selling Price | G8: Cost per Portion: | I8: =IF(I9=0, ,I9/B6) -> 0
A9: Projected FC% | B9: =IF(I9=0,,(IF(Gross_or_Not="y",((I9/B6)/(B8/(1+Tax_Rate))),(I9/B6)/(B8)))) -> 0 | D9: =IF(I9=0,,(IF(Gross_or_Not="y",((I8/Info!G10+(('Recipe Template (1)'!I8/Info!G10)*Tax_Rate))),('Recipe Template (1)'!I8/Info!G10)))) -> 0 | E9: =IF(L9=0,,(IF(Gross_or_Not="y",((L9/E6)/(E8/(1+Tax_Rate))),(L9/E6)/(E8)))) -> 0 | G9: Cost per Recipe: | I9: =SUM(I15:I41) -> 0
A10: EP = Edible Portion AP$ = As Purchased cost EP$ = Edible Portion Cost Unit = unit of measure for ingredients
A11: For common Yields use these tools: | C11: Produce Yields | E11: Fruit Yields | G11: Fish Yields | H11: Spice Yields
B13: Recipe Quantity (EP) | E13: Costing | I13: Total
A14: Ingredients | B14: Quantity | C14: Weight | D14: Volume | E14: AP$ / Unit | F14: Unit | G14: Yield % | H14: EP$ / Unit | I14: Cost
F15: =IF(B15>0,IF(C15<>"",C15,D15),"") ->  | H15: =IF(G15>0,E15+(E15*(1-G15)),"") ->  | I15: =IF(E15>0,(B15*H15)," ") -> 
A42: Method:
A60: This file cannot be used or sold as a means of generating revenue without prior permission in writing.

Sheet Recipe Template (2)
A1: Culinary Department Recipe Costing Tool
G2: Date:
A3: Recipe name:
A4: Concept: | G4: Cuisine:
A5: Submitted by: | G5: Category:
A6: Number of Portions: 1 or 24 | B6: 1 | E6: Operation:
A7: Serving Size Per Person: | E7: Region:
A8: =IF(Gross_or_Not="y","Purposed Net Selling Price","Purposed Gross Selling Price") -> Purposed Gross Selling Price | B8: 1 | D8: =IF(Gross_or_Not="y","Ideal Net Selling Price","Ideal Gross Selling Price") -> Ideal Gross Selling Price | E8: =IF(Gross_or_Not="y","Net Selling Price","Gross Selling Price") -> Gross Selling Price | G8: Cost per Portion: | I8: =IF(I9=0, ,I9/B6) -> 0
A9: Projected FC% | B9: =IF(I9=0,,(IF(Gross_or_Not="y",((I9/B6)/(B8/(1+Tax_Rate))),(I9/B6)/(B8)))) -> 0 | D9: =IF(I9=0,,(IF(Gross_or_Not="y",((I8/Info!G10+(('Recipe Template (2)'!I8/Info!G10)*Tax_Rate))),('Recipe Template (2)'!I8/Info!G10)))) -> 0 | E9: =IF(L9=0,,(IF(Gross_or_Not="y",((L9/E6)/(E8/(1+Tax_Rate))),(L9/E6)/(E8)))) -> 0 | G9: Cost per Recipe: | I9: =SUM(I15:I41) -> 0
A10: EP = Edible Portion AP$ = As Purchased cost EP$ = Edible Portion Cost Unit = unit of measure for ingredients
A11: For common Yields use these tools: | C11: Produce Yields | E11: Fruit Yields | G11: Fish Yields | H11: Spice Yields
B13: Recipe Quantity (EP) | E13: Costing | I13: Total
A14: Ingredients | B14: Quantity | C14: Weight | D14: Volume | E14: AP$ / Unit | F14: Unit | G14: Yield % | H14: EP$ / Unit | I14: Cost
F15: =IF(B15>0,IF(C15<>"",C15,D15),"") ->  | H15: =IF(G15>0,E15+(E15*(1-G15)),"") ->  | I15: =IF(E15>0,(B15*H15)," ") -> 
A42: Method:
A60: This file cannot be used or sold as a means of generating revenue without prior permission in writing.

Sheet Recipe Template (3)
A1: Culinary Department Recipe Costing Tool
G2: Date:
A3: Recipe name:
A4: Concept: | G4: Cuisine:
A5: Submitted by: | G5: Category:
A6: Number of Portions: 1 or 24 | B6: 1 | E6: Operation:
A7: Serving Size Per Person: | E7: Region:
A8: =IF(Gross_or_Not="y","Purposed Net Selling Price","Purposed Gross Selling Price") -> Purposed Gross Selling Price | B8: 1 | D8: =IF(Gross_or_Not="y","Ideal Net Selling Price","Ideal Gross Selling Price") -> Ideal Gross Selling Price | E8: =IF(Gross_or_Not="y","Net Selling Price","Gross Selling Price") -> Gross Selling Price | G8: Cost per Portion: | I8: =IF(I9=0, ,I9/B6) -> 0
A9: Projected FC% | B9: =IF(I9=0,,(IF(Gross_or_Not="y",((I9/B6)/(B8/(1+Tax_Rate))),(I9/B6)/(B8)))) -> 0 | D9: =IF(I9=0,,(IF(Gross_or_Not="y",((I8/Info!G10+(('Recipe Template (3)'!I8/Info!G10)*Tax_Rate))),('Recipe Template (3)'!I8/Info!G10)))) -> 0 | E9: =IF(L9=0,,(IF(Gross_or_Not="y",((L9/E6)/(E8/(1+Tax_Rate))),(L9/E6)/(E8)))) -> 0 | G9: Cost per Recipe: | I9: =SUM(I15:I41) -> 0
A10: EP = Edible Portion AP$ = As Purchased cost EP$ = Edible Portion Cost Unit = unit of measure for ingredients
A11: For common Yields use these tools: | C11: Produce Yields | E11: Fruit Yields | G11: Fish Yields | H11: Spice Yields
B13: Recipe Quantity (EP) | E13: Costing | I13: Total
A14: Ingredients | B14: Quantity | C14: Weight | D14: Volume | E14: AP$ / Unit | F14: Unit | G14: Yield % | H14: EP$ / Unit | I14: Cost
F15: =IF(B15>0,IF(C15<>"",C15,D15),"") ->  | H15: =IF(G15>0,E15+(E15*(1-G15)),"") ->  | I15: =IF(E15>0,(B15*H15)," ") -> 
A42: Method:
A60: This file cannot be used or sold as a means of generating revenue without prior permission in writing.

Sheet Example 1
A1: Culinary Department Recipe Costing Tool
G2: Date:
A3: Recipe name: | B3: Crab Salad
A4: Concept: | G4: Cuisine:
A5: Submitted by: | G5: Category:
A6: Number of Portions: 1 or 24 | B6: 10 | E6: Operation:
A7: Serving Size Per Person: | B7: 3 oz | E7: Region:
A8: =IF(Gross_or_Not="y","Purposed Net Selling Price","Purposed Gross Selling Price") -> Purposed Gross Selling Price | B8: 5 | D8: =IF(Gross_or_Not="y","Ideal Net Selling Price","Ideal Gross Selling Price") -> Ideal Gross Selling Price | E8: =IF(Gross_or_Not="y","Net Selling Price","Gross Selling Price") -> Gross Selling Price | G8: Cost per Portion: | I8: =IF(I9=0, ,I9/B6) -> 1.944956563
A9: Projected FC% | B9: =IF(I9=0,,(IF(Gross_or_Not="y",((I9/B6)/(B8/(1+Tax_Rate))),(I9/B6)/(B8)))) -> 0.3889913125 | D9: =IF(I9=0,,(IF(Gross_or_Not="y",((I8/Info!G10+(('Example 1'!I8/Info!G10)*Tax_Rate))),('Example 1'!I8/Info!G10)))) -> 4.862391406 | E9: =IF(L9=0,,(IF(Gross_or_Not="y",((L9/E6)/(E8/(1+Tax_Rate))),(L9/E6)/(E8)))) -> 0 | G9: Cost per Recipe: | I9: =SUM(I15:I41) -> 19.44956563
A10: EP = Edible Portion AP$ = As Purchased cost EP$ = Edible Portion Cost Unit = unit of measure for ingredients
A11: For common Yields use these tools: | C11: Produce Yields | E11: Fruit Yields | G11: Fish Yields | H11: Spice Yields
B13: Recipe Quantity (EP) | E13: Costing | I13: Total
A14: Ingredients | B14: Quantity | C14: Weight | D14: Volume | E14: AP$ / Unit | F14: Unit | G14: Yield % | H14: EP$ / Unit | I14: Cost
A15: Dungeness Crab Meat | B15: 1 | C15: Lb | E15: 16.85 | F15: =IF(B15>0,IF(C15<>"",C15,D15),"") -> Lb | G15: 0.99 | H15: =IF(G15>0,E15+(E15*(1-G15)),"") -> 17.0185 | I15: =IF(E15>0,(B15*H15)," ") -> 17.0185
A16: Celery, diced | B16: 6 | C16: Oz | E16: =0.18/16 -> 0.01125 | F16: Oz | G16: 0.75 | H16: 0.0140625 | I16: 0.084375
A17: Red Bell Pepper, bruniose | B17: 3 | C17: Oz | E17: =3.87/16 -> 0.241875 | F17: Oz | G17: 0.65 | H17: 0.32653125 | I17: 0.97959375
A18: Yellow Bell Pepper, bruniose | B18: 3 | C18: Oz | E18: =4.23/16 -> 0.264375 | F18: Oz | G18: 0.83 | H18: 0.30931875 | I18: 0.92795625
A19: Fresh Tarragon | B19: 2 | D19: Tbl | E19: =3.95/4/16 -> 0.06171875 | F19: Tbl | G19: 0.75 | H19: 0.0771484375 | I19: 0.154296875
A20: Fresh Dill | B20: 1 | D20: Tbl | E20: =4.08/4/16 -> 0.06375 | F20: Tbl | G20: 0.75 | H20: 0.0796875 | I20: 0.0796875
A21: Mayo | B21: 0.25 | D21: Cup | E21: =39/3/128*8 -> 0.8125 | F21: Cup | G21: 0.99 | H21: 0.820625 | I21: 0.20515625
A42: Method:
A60: This file cannot be used or sold as a means of generating revenue without prior permission in writing.

Sheet Example 2
A1: Culinary Department Recipe Costing Tool
G2: Date:
A3: Recipe name: | B3: Grilled Salmon with Lemon Beurre Blanc
A4: Concept: | G4: Cuisine:
A5: Submitted by: | G5: Category:
A6: Number of Portions: 1 or 24 | B6: 1 | E6: Operation:
A7: Serving Size Per Person: | E7: Region:
A8: =IF(Gross_or_Not="y","Purposed Net Selling Price","Purposed Gross Selling Price") -> Purposed Gross Selling Price | B8: 22 | D8: =IF(Gross_or_Not="y","Ideal Net Selling Price","Ideal Gross Selling Price") -> Ideal Gross Selling Price | E8: =IF(Gross_or_Not="y","Net Selling Price","Gross Selling Price") -> Gross Selling Price | G8: Cost per Portion: | I8: =IF(I9=0, ,I9/B6) -> 8.4571375
A9: Projected FC% | B9: =IF(I9=0,,(IF(Gross_or_Not="y",((I9/B6)/(B8/(1+Tax_Rate))),(I9/B6)/(B8)))) -> 0.3844153409 | D9: =IF(I9=0,,(IF(Gross_or_Not="y",((I8/Info!G10+(('Example 2'!I8/Info!G10)*Tax_Rate))),('Example 2'!I8/Info!G10)))) -> 21.14284375 | E9: =IF(L9=0,,(IF(Gross_or_Not="y",((L9/E6)/(E8/(1+Tax_Rate))),(L9/E6)/(E8)))) -> 0 | G9: Cost per Recipe: | I9: =SUM(I15:I41) -> 8.4571375
A10: EP = Edible Portion AP$ = As Purchased cost EP$ = Edible Portion Cost Unit = unit of measure for ingredients
A11: For common Yields use these tools: | C11: Produce Yields | E11: Fruit Yields | G11: Fish Yields | H11: Spice Yields
B13: Recipe Quantity (EP) | E13: Costing | I13: Total
A14: Ingredients | B14: Quantity | C14: Weight | D14: Volume | E14: AP$ / Unit | F14: Unit | G14: Yield % | H14: EP$ / Unit | I14: Cost
A15: Salmon Fillet, Skin/Off | B15: 7 | C15: Oz | E15: =8.95/16 -> 0.559375 | F15: =IF(B15>0,IF(C15<>"",C15,D15),"") -> Oz | G15: 0.9 | H15: =IF(G15>0,E15+(E15*(1-G15)),"") -> 0.6153125 | I15: =IF(E15>0,(B15*H15)," ") -> 4.3071875
A16: Asparagus, trimmed | B16: 4 | C16: Oz | E16: =4.95/16 -> 0.309375 | F16: Oz | G16: 0.54 | H16: 0.4516875 | I16: 1.80675
A17: Lemon Beurre Blanc | B17: 2 | D17: Floz | E17: 0.61 | F17: Floz | G17: 0.99 | H17: 0.6161 | I17: 1.2322
A18: Roasted Red Potatoes | B18: 6 | C18: Oz | E18: 0.08 | F18: Oz | G18: 0.99 | H18: 0.0808 | I18: 0.4848
A19: Garnish | B19: 1 | D19: Serv | E19: 0.09 | F19: Serv | G19: 0.99 | H19: 0.0909 | I19: 0.0909
A21: Rolls and Butter | B21: 1 | D21: Serv | E21: 0.53 | F21: Serv | G21: 0.99 | H21: 0.5353 | I21: 0.5353
A42: Method:
A60: This file cannot be used or sold as a means of generating revenue without prior permission in writing.

Sheet Recipe Template (hidden)
A1: Culinary Department Recipe Costing Tool
G2: Date:
A3: Recipe name:
A4: Concept: | G4: Cuisine:
A5: Submitted by: | G5: Category:
A6: Number of Portions: 1 or 24 | B6: 1 | E6: Operation:
A7: Serving Size Per Person: | E7: Region:
A8: =IF(Gross_or_Not="y","Purposed Net Selling Price","Purposed Gross Selling Price") -> Purposed Gross Selling Price | B8: 1 | D8: =IF(Gross_or_Not="y","Ideal Net Selling Price","Ideal Gross Selling Price") -> Ideal Gross Selling Price | E8: =IF(Gross_or_Not="y","Net Selling Price","Gross Selling Price") -> Gross Selling Price | G8: Cost per Portion: | I8: =IF(I9=0, ,I9/B6) -> 0
A9: Projected FC% | B9: =IF(I9=0,,(IF(Gross_or_Not="y",((I9/B6)/(B8/(1+Tax_Rate))),(I9/B6)/(B8)))) -> 0 | D9: =IF(I9=0,,(IF(Gross_or_Not="y",((I8/Info!G10+(('Recipe Template'!I8/Info!G10)*Tax_Rate))),('Recipe Template'!I8/Info!G10)))) -> 0 | E9: =IF(L9=0,,(IF(Gross_or_Not="y",((L9/E6)/(E8/(1+Tax_Rate))),(L9/E6)/(E8)))) -> 0 | G9: Cost per Recipe: | I9: =SUM(I15:I41) -> 0
A10: EP = Edible Portion AP$ = As Purchased cost EP$ = Edible Portion Cost Unit = unit of measure for ingredients
A11: For common Yields use these tools: | C11: Produce Yields | E11: Fruit Yields | G11: Fish Yields | H11: Spice Yields
B13: Recipe Quantity (EP) | E13: Costing | I13: Total
A14: Ingredients | B14: Quantity | C14: Weight | D14: Volume | E14: AP$ / Unit | F14: Unit | G14: Yield % | H14: EP$ / Unit | I14: Cost
F15: =IF(B15>0,IF(C15<>"",C15,D15),"") ->  | H15: =IF(G15>0,E15+(E15*(1-G15)),"") ->  | I15: =IF(E15>0,(B15*H15)," ") -> 
A42: Method:
A60: This file cannot be used or sold as a means of generating revenue without prior permission in writing.
